fUST/lending_fUST_20240223
["ID","MTS","AMOUNT","RATE_DAILY","PERIOD"]
[314923091,1708659039144,-153.900109,0.000194,2]
[314923092,1708659039154,-260.6364286,0.000194,2]
[314923093,1708659039166,-153.8214087,0.000194,2]
[314923094,1708659039177,-153.0,0.000194,2]
[314923095,1708659039189,-153.0,0.000194,2]
[314923096,1708659039200,-153.0,0.000194,2]
[314923097,1708659039211,-200.4746276,0.000194,2]
[314923098,1708659039222,-153.0,0.000194,2]
[314923099,1708659039233,-306.0,0.000194,2]
[314923100,1708659039243,-400.229685,0.000194,2]
[314923101,1708659039253,-153.0,0.000194,2]
[314923102,1708659039262,-153.0,0.000194,2]
[314923103,1708659039273,-153.0,0.000194,2]
[314923104,1708659039284,-153.0,0.000194,2]
[314923105,1708659039295,-24812.13,0.00019442,3]
[314923106,1708659039305,-500.0,0.00019452,2]
[314923107,1708659039317,-502.44,0.00019452,2]
[314923108,1708659039328,-1034.52,0.00019452,2]
[314923109,1708659039338,-698.7,0.00019452,2]
[314923110,1708659039349,-500.0,0.00019452,2]
[314923111,1708659039360,-655.34,0.00019452,2]
[314923112,1708659039371,-500.0,0.00019452,2]
[314923113,1708659039383,-500.0,0.00019452,2]
[314923114,1708659039394,-1049.16,0.00019452,2]
[314923115,1708659039404,-500.0,0.00019452,2]
[314923116,1708659039414,-500.0,0.00019452,2]
[314923117,1708659039423,-973.53,0.00019452,2]
[314923118,1708659039434,-500.0,0.00019452,2]
[314923119,1708659039447,-988.54,0.00019452,2]
[314923120,1708659039458,-2139.72,0.00019452,2]
[314923121,1708659039468,-825.43,0.00019452,2]
[314923122,1708659039479,-4443.39,0.00019452,2]
[314923123,1708659039490,-1068.47,0.00019452,2]
[314923124,1708659039501,-1073.17,0.00019452,2]
[314923125,1708659039511,-923.58,0.00019452,2]
[314923126,1708659039523,-666.42,0.00019452,2]
[314923127,1708659039533,-500.0,0.00019452,2]
[314923128,1708659039544,-6924.9,0.00019452,2]
[314923129,1708659039555,-930.41,0.00019452,2]
[314923130,1708659039565,-1238.01,0.00019452,2]
[314923131,1708659039576,-1191.89,0.00019452,2]
[314923132,1708659039588,-1585.52,0.00019452,2]
[314923133,1708659039599,-10040.92,0.00019452,2]
[314923134,1708659039611,-1274.05,0.00019452,2]
[314923135,1708659039622,-500.0,0.00019452,2]
[314923136,1708659039633,-669.36,0.00019452,2]
[314923137,1708659039645,-543.47,0.00019452,2]
[314923138,1708659039656,-1304.29,0.00019452,2]
[314923139,1708659039668,-500.0,0.00019452,2]
[314923140,1708659039678,-500.0,0.00019452,2]
[314923141,1708659039688,-500.0,0.00019452,2]
[314923142,1708659039698,-953.65,0.00019452,2]
[314923143,1708659039708,-500.0,0.00019452,2]
[314923144,1708659039718,-500.0,0.00019452,2]
[314923145,1708659039728,-934.03,0.00019452,2]
[314923146,1708659039738,-500.0,0.00019452,2]
[314923147,1708659039749,-500.0,0.00019452,2]
[314923148,1708659039760,-3184.26,0.00019452,2]
[314923149,1708659039770,-5004.19,0.00019452,2]
[314923150,1708659039780,-29216.25386215,0.00019466,2]
[314923151,1708659039798,-307.40971767,0.00019466,2]
[314923172,1708659045973,-948.31,0.00019178,2]
[314923173,1708659045982,-756.65,0.00019178,2]
[314923174,1708659045991,-322.3004269,0.00019178,2]
[314923175,1708659046000,-948.31,0.00019452,2]
[314923176,1708659046010,-756.65,0.00019452,2]
[314923177,1708659046019,-2099.12236302,0.00019466,2]
[314923178,1708659046028,-31622.78594284,0.0001947,2]
[314923179,1708659046037,-1864.9412,0.00019476,2]
[314923180,1708659046045,-1864.9412,0.00019485,2]
[314923181,1708659046054,-28723.65615308,0.00019487,2]
[314923182,1708659363868,160.0,0.0003,120]
[314923184,1708659604164,826.0,0.0003,120]
[314923185,1708660036664,24359.6745633,0.00017892,2]
[314923228,1708660238049,-155.00775039,0.00018041,2]
[314923229,1708660238058,-1396.84184735,0.00018042,2]
[314923230,1708660238067,-164.28501003,0.00018143,2]
[314923231,1708660238076,-1005.44203989,0.00018243,2]
[314923263,1708660246166,-932.98,0.00018243,2]
[314923268,1708661113776,24900.0,0.00017362,2]
[314923269,1708661126773,160.4829556,0.00017873,2]
[314923270,1708661191382,74689.28039256,0.00017362,2]
[314923303,1708661438242,-155.00310006,0.00017361,2]
[314923305,1708661438251,-840.89562897,0.00017361,2]
[314923443,1708661443378,-1021.02579212,0.00017361,2]
[314923444,1708661443388,-382403.56196284,0.00017362,2]
[314923450,1708661446415,-358.25,0.00017362,2]
[314923452,1708662213201,9000.0,0.00016373,2]
[314923453,1708662213231,4199.8157489,0.00016373,2]
[314923454,1708662346577,14800.1842511,0.00016373,2]
[314923487,1708662632521,-1861.92142109,0.00016372,2]
[314923490,1708662632533,-17042.66978651,0.00016373,2]
[314923492,1708662632546,-81898.42153072,0.00016373,2]
[314923494,1708662632576,-547.53425189,0.00016373,2]
[314923527,1708662638480,-1196.70773582,0.00016373,2]
[314923532,1708662644417,-1861.92142109,0.00016372,2]
[314923533,1708662644427,-74248.01499665,0.00016373,2]
[314923534,1708662644476,-343.31323296,0.00016373,2]
[314923558,1708662646610,-90192.5345757,0.00016373,2]
[314923559,1708662657087,203.60035,0.00016209,2]
[314923560,1708662688716,1071.89,1.912e-05,6]
[314923561,1708662729140,8796.39965,0.00016209,2]
[314923562,1708662729172,19000.0,0.00016209,2]
[314923563,1708662778256,-75798.0,0.00016209,2]
[314923564,1708662906715,163.38875591,0.00016105,2]
[314923565,1708662956529,8836.61124409,0.00016105,2]
[314923566,1708662956570,19000.0,0.00016105,2]
[314923567,1708663036451,4697.05712449,0.000161,2]
[314923568,1708663052805,295.36555562,0.000161,2]
[314923569,1708663080820,1684.94392755,0.00016007,2]
[314923570,1708663080945,2322.63339234,0.000161,2]
[314923571,1708663080978,19000.0,0.000161,2]
[314923573,1708663379812,9000.0,0.00015373,2]
[314923574,1708663379842,15900.0,0.00015373,2]
[314923575,1708663508404,177.82123,0.00015185,2]
[314923576,1708663520333,250.0,0.00015185,2]
[314923607,1708663832723,-4697.05712449,0.00016076,2]
[314923609,1708663832733,-1861.92142109,0.00016077,2]
[314923611,1708663832742,-1297.86194636,0.00016077,2]
[314923613,1708663832752,-73375.30114397,0.000161,2]
[314923684,1708663841924,-1861.92142109,0.00016075,2]
[314923685,1708663841933,-1297.86194636,0.00016075,2]
[314923686,1708663841943,-10532.6993558,0.000161,2]
[314923687,1708663841954,-1736.68765775,0.000161,2]
[314923703,1708663846762,-614.58354959,0.00016099,2]
[314923706,1708664065352,155.0,0.00018,30]
[314923709,1708664308665,2672.17877,0.00015191,2]
[314923710,1708664308699,9000.0,0.00015191,2]
[314923711,1708664308736,13227.82123,0.00015191,2]
[314923712,1708664685098,191.03875916,0.00015191,2]
[314923807,1708665041091,-1000.69641991,0.00016098,2]
[314923842,1708665045889,-861.22500118,0.00016098,2]
[314923844,1708665045899,-1297.86194636,0.00016098,2]
[314923846,1708665045908,-268.30004422,0.00016099,2]
[314923851,1708665045945,-545.99575365,0.00016099,2]
[314923853,1708665045954,-71.12683952,0.000161,2]
[314923855,1708665045965,-341755.85814855,0.000161,2]
[314923857,1708665045974,-296.06077053,0.00016103,2]
[314923859,1708665045983,-12778.4168742,0.0001615,2]
[314923861,1708665045992,-7962.73801149,0.00016209,2]
[314923862,1708665046001,-300.0,0.00016315,2]
[314923864,1708665046010,-300.0,0.00016531,2]
[314923866,1708665046019,-300.0,0.00016747,2]
[314923868,1708665046028,-153.0,0.000168,2]
[314923870,1708665046038,-268.2009586,0.000168,2]
[314923872,1708665046047,-200.4746276,0.000168,2]
[314923874,1708665046056,-153.0,0.000168,2]
[314923876,1708665046065,-165.7158822,0.000168,2]
[314923878,1708665046074,-153.0,0.000168,2]
[314923880,1708665046083,-200.4746276,0.000168,2]
[314923882,1708665046093,-153.0,0.000168,2]
[314923884,1708665046102,-153.0,0.000168,2]
[314923886,1708665046111,-153.0,0.000168,2]
[314923888,1708665046120,-153.0,0.000168,2]
[314923890,1708665046129,-200.4746276,0.000168,2]
[314923892,1708665046138,-153.0,0.000168,2]
[314923894,1708665046146,-153.0,0.000168,2]
[314923896,1708665046155,-153.0,0.000168,2]
[314923898,1708665046164,-300.0,0.00016963,2]
[314923900,1708665046173,-300.0,0.00017179,2]
[314923901,1708665046182,-263.48876945,0.000173,2]
[314923903,1708665046191,-300.0,0.00017395,2]
[314923905,1708665046200,-300.0,0.0001761,2]
[314923907,1708665046209,-620.01096899,0.00017679,2]
[314923909,1708665046218,-300.0,0.00017826,2]
[314923911,1708665046228,-300.0,0.00018042,2]
[314923913,1708665046237,-25860.75913828,0.00018243,2]
[314923915,1708665046247,-300.0,0.00018258,2]
[314923918,1708665046257,-300.0,0.00018474,2]
[314923919,1708665046267,-620.00054845,0.00018563,2]
[314923921,1708665046277,-300.0,0.0001869,2]
[314923923,1708665046286,-1518.58675287,0.00018832,2]
[314923926,1708665046295,-1365.36127458,0.000189,2]
[314923927,1708665046305,-300.0,0.00018906,2]
[314923929,1708665046314,-183.75007137,0.00019077,2]
[314923931,1708665046324,-3221.63396633,0.00019078,2]
[314923933,1708665046333,-300.0,0.00019122,2]
[314923935,1708665046342,-211.2611875,0.00019177,2]
[314923937,1708665046351,-421.9692663,0.00019178,2]
[314923938,1708665046359,-500.0,0.00019178,2]
[314923940,1708665046368,-500.0,0.00019178,2]
[314923942,1708665046378,-500.0,0.00019178,2]
[314923944,1708665046386,-500.0,0.00019178,2]
[314923946,1708665046395,-500.0,0.00019178,2]
[314923948,1708665046404,-506.81131023,0.00019178,2]
[314923949,1708665046414,-525.95063021,0.00019178,2]
[314923951,1708665046422,-500.0,0.00019178,2]
[314923952,1708665046432,-291.42633742,0.00019178,2]
[314923954,1708665046441,-500.0,0.00019178,2]
[314923955,1708665046450,-500.0,0.00019178,2]
[314923956,1708665046459,-325.81531509,0.00019178,2]
[314923957,1708665046469,-247.02907396,0.00019178,2]
[314923958,1708665046478,-500.0,0.00019178,2]
[314923959,1708665046488,-500.0,0.00019178,2]
[314923960,1708665046497,-500.0,0.00019178,2]
[314923961,1708665046507,-500.0,0.00019178,2]
[314923962,1708665046516,-500.0,0.00019178,2]
[314923963,1708665046526,-584.00369726,0.00019178,2]
[314923964,1708665046535,-500.0,0.00019178,2]
[314923965,1708665046544,-500.0,0.00019178,2]
[314923966,1708665046554,-500.0,0.00019178,2]
[314923967,1708665046563,-500.0,0.00019178,2]
[314923968,1708665046572,-500.0,0.00019178,2]
[314923969,1708665046582,-500.0,0.00019178,2]
[314923970,1708665046591,-500.0,0.00019178,2]
[314923971,1708665046601,-500.0,0.00019178,2]
[314923972,1708665046610,-500.0,0.00019178,2]
[314923973,1708665046619,-500.0,0.00019178,2]
[314923974,1708665046629,-500.0,0.00019178,2]
[314923975,1708665046643,-500.0,0.00019178,2]
[314923976,1708665046652,-500.0,0.00019178,2]
[314923977,1708665046661,-500.0,0.00019178,2]
[314923978,1708665046670,-500.0,0.00019178,2]
[314923979,1708665046681,-500.0,0.00019178,2]
[314923980,1708665046690,-500.0,0.00019178,2]
[314923981,1708665046700,-500.0,0.00019178,2]
[314923982,1708665046709,-500.0,0.00019178,2]
[314923983,1708665046719,-500.0,0.00019178,2]
[314923984,1708665046729,-500.0,0.00019178,2]
[314923985,1708665046738,-500.0,0.00019178,2]
[314923986,1708665046747,-500.0,0.00019178,2]
[314923987,1708665046757,-500.0,0.00019178,2]
[314923988,1708665046766,-500.0,0.00019178,2]
[314923989,1708665046775,-500.0,0.00019178,2]
[314923990,1708665046784,-500.0,0.00019178,2]
[314923991,1708665046793,-500.0,0.00019178,2]
[314923992,1708665046804,-500.0,0.00019178,2]
[314923993,1708665046813,-500.0,0.00019178,2]
[314923994,1708665046822,-500.0,0.00019178,2]
[314923995,1708665046831,-500.0,0.00019178,2]
[314923996,1708665046840,-500.0,0.00019178,2]
[314923997,1708665046849,-500.0,0.00019178,2]
[314923999,1708665046858,-500.0,0.00019178,2]
[314924000,1708665046867,-500.0,0.00019178,2]
[314924002,1708665046876,-500.0,0.00019178,2]
[314924003,1708665046886,-500.0,0.00019178,2]
[314924005,1708665046895,-500.0,0.00019178,2]
[314924006,1708665046904,-500.0,0.00019178,2]
[314924008,1708665046912,-500.0,0.00019178,2]
[314924010,1708665046921,-500.0,0.00019178,2]
[314924012,1708665046930,-500.0,0.00019178,2]
[314924013,1708665046939,-500.0,0.00019178,2]
[314924014,1708665046948,-253.21499024,0.00019178,2]
[314924015,1708665046957,-500.0,0.00019178,2]
[314924016,1708665046966,-500.0,0.00019178,2]
[314924017,1708665046975,-500.0,0.00019178,2]
[314924018,1708665046984,-500.0,0.00019178,2]
[314924019,1708665046994,-500.0,0.00019178,2]
[314924020,1708665047003,-500.0,0.00019178,2]
[314924021,1708665047012,-500.0,0.00019178,2]
[314924022,1708665047022,-500.0,0.00019178,2]
[314924023,1708665047031,-500.0,0.00019178,2]
[314924024,1708665047040,-500.0,0.00019178,2]
[314924025,1708665047051,-500.0,0.00019178,2]
[314924026,1708665047060,-500.0,0.00019178,2]
[314924027,1708665047069,-500.0,0.00019178,2]
[314924028,1708665047078,-500.0,0.00019178,2]
[314924029,1708665047087,-500.0,0.00019178,2]
[314924030,1708665047096,-500.0,0.00019178,2]
[314924031,1708665047105,-500.0,0.00019178,2]
[314924032,1708665047114,-500.0,0.00019178,2]
[314924033,1708665047123,-500.0,0.00019178,2]
[314924034,1708665047133,-387.27715366,0.00019178,2]
[314924129,1708666238126,-173.004196,0.00017961,2]
[314924130,1708666238136,-1609.06398005,0.00018104,2]
[314924137,1708666241263,-252.85744104,0.00018104,2]
[314924138,1708666241273,-1178.61377217,0.00018105,2]
[314924139,1708666241283,-537.8027266,0.00018106,2]
[314924140,1708666241292,-1050.56251038,0.000189,2]
[314924141,1708666241301,-1069.06966249,0.00019067,2]
[314924142,1708666241313,-1001.37826829,0.00019067,2]
[314924147,1708666244130,-680.4295208,0.00019067,2]
[314924148,1708666244140,-155.94595156,0.00019068,2]
[314924149,1708666244150,-201.03301885,0.00019078,3]
[314924150,1708666244160,-200.87720568,0.00019078,2]
[314924151,1708666244169,-159.75479002,0.00019078,2]
[314924152,1708666244178,-281.38,0.00019168,3]
[314924153,1708666244188,-306.85330038,0.00019168,3]
[314924212,1708667439244,-319.88118119,0.00017895,2]
[314924269,1708667448394,-1542.0402399,0.00017895,2]
[314924270,1708667448404,-1132.8525592,0.00017896,2]
[314924271,1708667448414,-186.45037876,0.00018055,2]
[314924272,1708667448423,-1503.748301,0.00018149,2]
[314924273,1708667448433,-620.00002742,0.00018517,2]
[314924274,1708667448442,-905.12264224,0.000189,2]
[314924275,1708667448451,-183.34,0.00019168,3]
[314924276,1708667448461,-300.0,0.00019175,2]
[314924277,1708667448470,-3062.03232817,0.00019176,2]
[314924278,1708667448480,-1594.94460859,0.00019176,2]
[314924279,1708667448489,-500.0,0.00019178,2]
[314924280,1708667448499,-500.0,0.00019178,2]
[314924281,1708667448510,-500.0,0.00019178,2]
[314924282,1708667448521,-500.0,0.00019178,2]
[314924283,1708667448531,-501.56110135,0.00019178,2]
[314924284,1708667448543,-213.51680516,0.00019178,2]
[314924285,1708667448554,-500.0,0.00019178,2]
[314924286,1708667448563,-500.0,0.00019178,2]
[314924287,1708667448572,-775.29,0.00019178,2]
[314924288,1708667448581,-501.47156122,0.00019178,2]
[314924289,1708667448591,-500.0,0.00019178,2]
[314924290,1708667448601,-456.80215265,0.00019178,2]
[314924291,1708667448610,-500.0,0.00019178,2]
[314924292,1708667448619,-503.94439511,0.00019178,2]
[314924293,1708667448628,-500.0,0.00019178,2]
[314924294,1708667448637,-500.0,0.00019178,2]
[314924295,1708667448646,-500.0,0.00019178,2]
[314924296,1708667448655,-603.76238966,0.00019178,2]
[314924297,1708667448665,-1002.09036569,0.00019178,2]
[314924298,1708667448676,-500.0,0.00019178,2]
[314924299,1708667448685,-501.49146928,0.00019178,2]
[314924300,1708667448694,-772.5,0.00019178,2]
[314924301,1708667448703,-500.20045604,0.00019178,2]
[314924302,1708667448712,-500.0,0.00019178,2]
[314924303,1708667448721,-500.0,0.00019178,2]
[314924304,1708667448731,-369.21845984,0.00019178,2]
[314924305,1708667448740,-500.79231657,0.00019178,2]
[314924306,1708667448749,-500.57580498,0.00019178,2]
[314924307,1708667448758,-500.0,0.00019178,2]
[314924308,1708667448767,-501.03382688,0.00019178,2]
[314924309,1708667448776,-501.98835808,0.00019178,2]
[314924310,1708667448785,-500.0,0.00019178,2]
[314924311,1708667448794,-500.0,0.00019178,2]
[314924312,1708667448803,-647.22,0.00019178,2]
[314924313,1708667448812,-500.61270406,0.00019178,2]
[314924314,1708667448821,-500.62731686,0.00019178,2]
[314924315,1708667448830,-501.27008884,0.00019178,2]
[314924316,1708667448839,-501.80150892,0.00019178,2]
[314924317,1708667448849,-281.20782423,0.00019178,2]
[314924318,1708667448857,-500.0,0.00019178,2]
[314924319,1708667448866,-501.73071972,0.00019178,2]
[314924320,1708667448875,-510.93419124,0.00019178,2]
[314924321,1708667448884,-500.0,0.00019178,2]
[314924322,1708667448894,-500.0,0.00019178,2]
[314924323,1708667448903,-500.0,0.00019178,2]
[314924324,1708667448913,-500.0,0.00019178,2]
[314924325,1708667448922,-501.40572876,0.00019178,2]
[314924326,1708667448931,-600.6800655,0.00019178,2]
[314924327,1708667448940,-305.08549894,0.00019178,2]
[314924328,1708667448949,-500.36484245,0.00019178,2]
[314924329,1708667448958,-500.0,0.00019178,2]
[314924330,1708667448967,-644.24,0.00019178,2]
[314924331,1708667448977,-500.64164528,0.00019178,2]
[314924332,1708667448986,-501.33235882,0.00019178,2]
[314924333,1708667448995,-500.0,0.00019178,2]
[314924334,1708667449005,-500.0,0.00019178,2]
[314924335,1708667449014,-501.03892635,0.00019178,2]
[314924336,1708667449023,-500.51096208,0.00019178,2]
[314924337,1708667449033,-501.05568554,0.00019178,2]
[314924338,1708667449043,-500.58098738,0.00019178,2]
[314924339,1708667449052,-510.27943543,0.00019178,2]
[314924340,1708667449061,-1500.74,0.00019178,2]
[314924341,1708667449071,-500.42471749,0.00019178,2]
[314924342,1708667449080,-500.0,0.00019178,2]
[314924343,1708667449089,-500.0,0.00019178,2]
[314924344,1708667449098,-500.75730994,0.00019178,2]
[314924345,1708667449107,-690.04,0.00019178,2]
[314924346,1708667449116,-501.30524498,0.00019178,2]
[314924347,1708667449126,-500.0,0.00019178,2]
[314924348,1708667449135,-500.55007898,0.00019178,2]
[314924349,1708667449145,-500.0,0.00019178,2]
[314924350,1708667449155,-1169.7,0.00019178,2]
[314924351,1708667449164,-1448.36,0.00019178,2]
[314924352,1708667449174,-500.0,0.00019178,2]
[314924353,1708667449184,-3949.79,0.00019178,2]
[314924354,1708667449194,-501.11579154,0.00019178,2]
[314924355,1708667449204,-500.0,0.00019178,2]
[314924356,1708667449213,-500.57257284,0.00019178,2]
[314924357,1708667449223,-500.0,0.00019178,2]
[314924358,1708667449234,-538.23932165,0.00019178,2]
[314924359,1708667449243,-500.829993,0.00019178,2]
[314924360,1708667449253,-500.0,0.00019178,2]
[314924361,1708667449262,-501.07745012,0.00019178,2]
[314924362,1708667449271,-500.81725587,0.00019178,2]
[314924363,1708667449281,-500.76231517,0.00019178,2]
[314924364,1708667449291,-500.64368728,0.00019178,2]
[314924365,1708667449300,-500.0,0.00019178,2]
[314924366,1708667449309,-500.0,0.00019178,2]
[314924367,1708667449318,-500.0,0.00019178,2]
[314924368,1708667449327,-1270.54,0.00019178,2]
[314924369,1708667449336,-500.0,0.00019178,2]
[314924370,1708667449345,-2466.24,0.00019178,2]
[314924371,1708667449355,-500.0,0.00019178,2]
[314924372,1708667449364,-500.0,0.00019178,2]
[314924373,1708667449377,-1180.32,0.00019178,2]
[314924374,1708667449386,-500.0,0.00019178,2]
[314924375,1708667449397,-500.0,0.00019178,2]
[314924376,1708667449407,-500.76474039,0.00019178,2]
[314924377,1708667449417,-1419.84,0.00019178,2]
[314924378,1708667449426,-1898.41,0.00019178,2]
[314924379,1708667449435,-500.0,0.00019178,2]
[314924380,1708667449445,-501.09113379,0.00019178,2]
[314924381,1708667449454,-500.0,0.00019178,2]
[314924382,1708667449464,-558.66887159,0.00019178,2]
[314924390,1708668191231,2164.0,0.0003,120]
[314924432,1708668632555,-1861.92142109,0.00017295,2]
[314924434,1708668632566,-155.01240099,0.00017296,2]
[314924435,1708668632575,-230.5517118,0.00017297,2]
[314924436,1708668632585,-305.712405,0.00017305,2]
[314924437,1708668632595,-1516.2642425,0.00017466,2]
[314924438,1708668632604,-24900.0,0.00017487,2]
[314924439,1708668632614,-182.95614973,0.00017555,2]
[314924440,1708668632623,-717.7276659,0.00017655,2]
[314924441,1708668632632,-318.56789815,0.00018799,2]
[314924442,1708668632643,-739.18507295,0.000189,2]
[314924443,1708668632652,-580.0,0.00019,2]
[314924444,1708668632662,-200.48091164,0.00019078,2]
[314924445,1708668632671,-152.78,0.00019168,3]
[314924446,1708668632680,-458.37,0.00019168,3]
[314924448,1708668632695,-529.52216586,0.00019177,2]
[314924450,1708668632704,-500.0,0.00019178,2]
[314924452,1708668632714,-500.4246728,0.00019178,2]
[314924454,1708668632724,-500.0,0.00019178,2]
[314924456,1708668632734,-152.9,0.00019178,2]
[314924458,1708668632744,-500.0,0.00019178,2]
[314924460,1708668632758,-617.39,0.00019178,2]
[314924462,1708668632768,-435.90777223,0.00019178,2]
[314924464,1708668632778,-500.0,0.00019178,2]
[314924466,1708668632788,-254.29219889,0.00019178,2]
[314924469,1708668632800,-500.0,0.00019178,2]
[314924470,1708668632809,-500.0,0.00019178,2]
[314924472,1708668632818,-1190.64,0.00019178,2]
[314924474,1708668632829,-500.0,0.00019178,2]
[314924476,1708668632839,-500.0,0.00019178,2]
[314924478,1708668632849,-500.0,0.00019178,2]
[314924480,1708668632858,-500.0,0.00019178,2]
[314924481,1708668632867,-501.06672722,0.00019178,2]
[314924482,1708668632877,-3785.21,0.00019178,2]
[314924483,1708668632886,-500.0,0.00019178,2]
[314924484,1708668632896,-500.0,0.00019178,2]
[314924485,1708668632905,-295.68628284,0.00019178,2]
[314924486,1708668632914,-500.0,0.00019178,2]
[314924487,1708668632924,-501.50917574,0.00019178,2]
[314924488,1708668633049,-740.32,0.00019178,2]
[314924489,1708668633058,-500.0,0.00019178,2]
[314924490,1708668633067,-500.0,0.00019178,2]
[314924491,1708668633076,-500.0,0.00019178,2]
[314924492,1708668633085,-500.0,0.00019178,2]
[314924493,1708668633095,-500.0,0.00019178,2]
[314924494,1708668633105,-500.0,0.00019178,2]
[314924495,1708668633115,-500.0,0.00019178,2]
[314924496,1708668633124,-500.0,0.00019178,2]
[314924497,1708668633134,-500.0,0.00019178,2]
[314924498,1708668633143,-500.0,0.00019178,2]
[314924499,1708668633153,-501.0655745,0.00019178,2]
[314924500,1708668633162,-640.32,0.00019178,2]
[314924501,1708668633172,-500.0,0.00019178,2]
[314924502,1708668633181,-500.0,0.00019178,2]
[314924503,1708668633190,-470.0,0.00019178,2]
[314924504,1708668633200,-500.0,0.00019178,2]
[314924505,1708668633209,-500.0,0.00019178,2]
[314924506,1708668633219,-500.0,0.00019178,2]
[314924507,1708668633228,-500.0,0.00019178,2]
[314924508,1708668633237,-500.0,0.00019178,2]
[314924509,1708668633246,-500.0,0.00019178,2]
[314924510,1708668633256,-500.0,0.00019178,2]
[314924511,1708668633265,-500.0,0.00019178,2]
[314924512,1708668633275,-500.0,0.00019178,2]
[314924513,1708668633284,-500.0,0.00019178,2]
[314924514,1708668633294,-500.39685081,0.00019178,2]
[314924515,1708668633304,-500.0,0.00019178,2]
[314924516,1708668633313,-500.0,0.00019178,2]
[314924517,1708668633323,-1438.21,0.00019178,2]
[314924518,1708668633332,-500.0,0.00019178,2]
[314924519,1708668633342,-661.29,0.00019178,2]
[314924520,1708668633351,-500.0,0.00019178,2]
[314924521,1708668633361,-151.0,0.00019178,2]
[314924522,1708668633371,-1388.01,0.00019178,2]
[314924523,1708668633380,-500.0,0.00019178,2]
[314924524,1708668633390,-500.0,0.00019178,2]
[314924525,1708668633399,-500.0,0.00019178,2]
[314924526,1708668633408,-500.0,0.00019178,2]
[314924527,1708668633417,-500.0,0.00019178,2]
[314924528,1708668633427,-500.0,0.00019178,2]
[314924529,1708668633436,-500.53429752,0.00019178,2]
[314924530,1708668633447,-500.0,0.00019178,2]
[314924531,1708668633457,-500.0,0.00019178,2]
[314924532,1708668633466,-151.0,0.00019178,2]
[314924533,1708668633476,-1277.3,0.00019178,2]
[314924534,1708668633485,-500.0,0.00019178,2]
[314924535,1708668633495,-500.0,0.00019178,2]
[314924536,1708668633504,-1337.22,0.00019178,2]
[314924537,1708668633513,-500.0,0.00019178,2]
[314924538,1708668633523,-161.73732483,0.00019178,2]
[314924539,1708668633533,-500.0,0.00019178,2]
[314924540,1708668633542,-500.0,0.00019178,2]
[314924541,1708668633553,-500.0,0.00019178,2]
[314924542,1708668633563,-500.0,0.00019178,2]
[314924543,1708668633573,-500.0,0.00019178,2]
[314924544,1708668633583,-500.0,0.00019178,2]
[314924545,1708668633593,-500.0,0.00019178,2]
[314924546,1708668633602,-913.49,0.00019178,2]
[314924547,1708668633612,-841.72,0.00019178,2]
[314924548,1708668633621,-1131.14,0.00019178,2]
[314924549,1708668633631,-500.0,0.00019178,2]
[314924550,1708668633640,-501.2777389,0.00019178,2]
[314924551,1708668633649,-1452.78,0.00019178,2]
[314924552,1708668633659,-500.0,0.00019178,2]
[314924553,1708668633668,-258.4769532,0.00019178,2]
[314924554,1708668633677,-2608.75777252,0.00019178,2]
[314924577,1708668639519,-155.01240099,0.00017294,2]